Cogmind - Beta 9 @@@ ROGUE MODE // 2019.10.26 @ 11:41:52 Player: Dendrocnid Result: Destroyed by S-10 Pest with Light Assault Rifle Performance ------------- Evolutions (0) 0 Regions Visited (2) 400 Robots Destroyed (13) 65 Value Destroyed (331) 331 Prototype IDs (0) 0 Alien Tech Used (0) 0 Bonus (0) 0 TOTAL SCORE: 796 Bonus ------- None Cogmind --------- Core Integrity 0/250 Matter 269/300 Energy 100/100 System Corruption 0% Temperature Cool (0) Location -10/Mines Parts ------- Power (1) Propulsion (2) Wheel Compact Wheel Utility (2) Large Storage Unit Hacking Suite Weapon (2) Assault Rifle Heavy Assault Rifle Inventory (10) Light Ion Engine Large Storage Unit Large Storage Unit Light Armor Plating Light Armor Plating Light Armor Plating Assault Rifle Grenade Launcher Grenade Launcher Datajack Peak State ------------ Power Ion Engine Propulsion Wheel Compact Wheel Utility Large Storage Unit Hacking Suite Weapon Assault Rifle Heavy Assault Rifle Inventory Light Ion Engine Large Storage Unit Large Storage Unit Light Armor Plating Light Armor Plating Light Armor Plating Assault Rifle Grenade Launcher Grenade Launcher Datajack [Rating: 11] Favorites ----------- Power Ion Engine Engine Ion Engine Propulsion Wheel Wheel Wheel Utility Hacking Suite Storage Large Storage Unit Hackware Hacking Suite Weapon Assault Rifle Energy Gun EM Pulse Gun Ballistic Gun Assault Rifle Build | -11 -10 -10 ------- Run | Scr Mat Min Slots Evolved . | . . . Power . | . . . Propulsion . | . . . Utility . | . . . Weapon . | . . . Parts Attached 17 | 6 8 3 Power 2 | 1 1 . Engine 2 | 1 1 . Core . | . . . Reactor . | . . . Propulsion 6 | 2 3 1 Treads . | . . . Leg . | . . . Wheel 6 | 2 3 1 Hover . | . . . Flight . | . . . Utility 3 | 1 2 . Device . | . . . Storage 2 | 1 1 . Processor . | . . . Hackware 1 | . 1 . Protection . | . . . Artifact . | . . . Weapon 6 | 2 2 2 Energy Gun 1 | . 1 . Energy Cannon . | . . . Ballistic Gun 5 | 2 1 2 Ballistic Cannon . | . . . Launcher . | . . . Special Weapon . | . . . Impact Weapon . | . . . Slashing Weapon . | . . . Piercing Weapon . | . . . Special Melee Weapon . | . . . Unidentified Prototypes . | . . . Parts Lost 6 | . 2 4 Power 1 | . . 1 Propulsion 2 | . 1 1 Utility . | . . . Weapon 3 | . 1 2 Highest Loss Streak 3 | . 2 3 Average Slot Usage (%) 97 | . 95 99 Engine 13 | . 14 13 Wheel 27 | . 26 27 Storage 14 | . 14 14 Hackware 12 | . 11 14 Energy Gun 5 | . 8 3 Ballistic Gun 22 | . 19 24 Naked Turns . | . . . Heaviest Build 26 | 10 25 26 Greatest Support 26 | 26 26 26 Greatest Overweight (x) 2 | . 1 2 Average Overweight (x) . | . . . Largest Inventory Capacity 10 | 6 10 10 Average Capacity 8 | 5 6 10 Most Carried 10 | 6 8 10 Average Carried 7 | 2 5 9 Final Capacity 10 | . . 10 Final Carried 10 | . . 10 Class Distribution -------------------- 79% | Scavenger-Mutant 20% | Mutant Dominant Class ---------------- Scavenger-Mutant | -10/Materials Scavenger-Mutant | -10/Mines Resources | -11 -10 -10 ----------- Run | Scr Mat Min Matter Collected 477 | 205 129 143 Remotely . | . . . Salvage Created 434 | . 195 239 Parts 32 | . 19 13 Haulers Intercepted . | . . . Recyclers Shooed . | . . . Parts Field Recycled . | . . . Retrieved Matter . | . . . Parts Self-Destructed . | . . . Prevented . | . . . Kills | -11 -10 -10 ------- Run | Scr Mat Min Combat Hostiles Destroyed 9 | . 3 6 Guns 8 | . 2 6 AOE 1 | . 1 . Classes Destroyed 7 | . 5 2 Worker 1 | . 1 . Builder 1 | . 1 . Operator 1 | . 1 . Watcher 1 | . 1 . Swarmer 2 | . . 2 Grunt 5 | . 3 2 Sentry 2 | . . 2 Best Kill Streak 6 | . 6 2 Combat Bots Only 3 | . 3 2 Max Kills in Single Turn 2 | . 2 1 Gunslinging . | . . . Exploded 1 | . 1 . Melee . | . . . Uniques/NPCs Destroyed . | . . . Combat | -11 -10 -10 -------- Run | Scr Mat Min Damage Taken 902 | . 431 471 Core 258 | . 117 141 Absorbed by Shields . | . . . Core Remaining (%) 100 | 100 . . Volleys Fired 41 | . 22 19 Largest 2 | . 2 2 Hottest 60 | . 60 60 Shots Fired 79 | . 43 36 Gun 79 | . 43 36 Cannon . | . . . Launcher . | . . . Special . | . . . Kinetic 66 | . 39 27 Thermal . | . . . Explosive . | . . . Electromagnetic 13 | . 4 9 Robot Hit Streak 12 | . 12 8 Robot Miss Streak 3 | . 2 3 Penetration Max . | . . . Secondary Targets 1 | . . 1 Max Gunslinging Chain 1 | . . 1 Shots Hit Robots 58 | . 35 23 Core Hits 23 | . 12 11 Critical Hits . | . . . Critical Kills . | . . . Critical Parts Destroyed . | . . . Melee Attacks . | . . . Impact . | . . . Slashing . | . . . Piercing . | . . . Sneak Attacks . | . . . Combat Hostiles . | . . . Follow-up Attacks . | . . . Damage Inflicted 733 | . 461 272 Guns 659 | . 387 272 Cannons . | . . . Explosions 74 | . 74 . Melee . | . . . Ramming . | . . . Kinetic 504 | . 320 184 Thermal 74 | . 74 . Explosive . | . . . Electromagnetic 155 | . 67 88 Impact . | . . . Slashing . | . . . Piercing . | . . . Highest Corruption . | . . . Average Corruption . | . . . Corruption Purged . | . . . Overload Shots . | . . . Overflow Damage . | . . . Projectiles . | . . . Explosions . | . . . Melee . | . . . Knockbacks . | . . . Impact . | . . . Kinetic . | . . . Secondary . | . . . Self-Inflicted Damage 40 | . 40 . Shots 1 | . 1 . Rammed . | . . . Targets Rammed . | . . . Kicked . | . . . Crushed . | . . . Highest Temperature 45 | . 28 45 Average Temperature 14 | . 10 20 Received Heat Transfer 342 | . 210 132 Siege Activations . | . . . Robots Corrupted . | . . . Combat Hostiles . | . . . Parts Fried . | . . . Impact Corruptions . | . . . Robots Melted . | . . . Combat Hostiles . | . . . Parts Melted . | . . . Heat Transferred 100 | . 100 . Parts Sabotaged . | . . . Parts Stolen . | . . . Parts Stripped . | . . . Power Chain Reactions 3 | . 3 . Missiles Intercepted . | . . . Alert | -11 -10 -10 ------- Run | Scr Mat Min Peak Influence 167 | . 167 139 Average Influence 89 | . 104 91 Maximum Alert Level . | . . . Low Security (%) 100 | . . . Level 1 . | . . . Level 2 . | . . . Level 3 . | . . . Level 4 . | . . . Level 5 . | . . . High Security . | . . . Max Security . | . . . Squads Dispatched 4 | . 4 . Investigation . | . . . Extermination . | . . . Reinforcement 4 | . 4 . Assault . | . . . Garrison . | . . . Intercept . | . . . Construction Impeded . | . . . Haulers Reinforced . | . . . Stealth | -11 -10 -10 --------- Run | Scr Mat Min Distress Signals . | . . . Communications Jammed . | . . . Distress Signals . | . . . Times Spotted 23 | . 14 9 Peak Tracking Total 7 | . 7 3 Tactical Retreats 2 | . 1 1 Traps | -11 -10 -10 ------- Run | Scr Mat Min Traps Triggered . | . . . Indirectly . | . . . Trap Hack Attempts . | . . . Triggered . | . . . Disarmed . | . . . Reprogrammed . | . . . Reused . | . . . Traps Extracted . | . . . Installed . | . . . Triggered . | . . . Machines | -11 -10 -10 ---------- Run | Scr Mat Min Machines Disabled . | . . . Max in Single Turn . | . . . Machines Sabotaged . | . . . Garrisons Compromised . | . . . Overloaded Fab Kills . | . . . Fab Network Shutdowns . | . . . Hacking | -11 -10 -10 --------- Run | Scr Mat Min Machines Accessed . | . . . Terminals . | . . . Fabricators . | . . . Repair Stations . | . . . Recycling Units . | . . . Scanalyzers . | . . . Garrison Access . | . . . Total Hacks . | . . . Successful . | . . . Failed . | . . . Catastrophic . | . . . Database Lockouts . | . . . Manual 2 | . 2 . Terminals . | . . . Fabricators . | . . . Repair Stations . | . . . Recycling Units . | . . . Scanalyzers . | . . . Garrison Access . | . . . Terminal Hacks . | . . . Fabricator Hacks . | . . . Repair Station Hacks . | . . . Recycling Unit Hacks . | . . . Scanalyzer . | . . . Garrison Access Hacks . | . . . Unauthorized Hacks . | . . . Terminals . | . . . Fabricators . | . . . Repair Stations . | . . . Recycling Units . | . . . Scanalyzers . | . . . Garrison Access . | . . . Data Cores Recovered . | . . . Used . | . . . Hacking Detections 1 | . 1 . Full Trace Events . | . . . Feedback Events . | . . . Feedback Blocked . | . . . Robot Schematics Acquired . | . . . Robots Built . | . . . Matter . | . . . Time . | . . . Total Robot Build Rating . | . . . Part Schematics Acquired . | . . . Parts Built . | . . . Matter . | . . . Time . | . . . Total Part Build Rating . | . . . Parts Repaired . | . . . Time . | . . . Parts Recycled . | . . . Recycled Matter . | . . . Retrieved Matter . | . . . Retrieved Components . | . . . Parts Scanalyzed . | . . . Part Schematics Acquired . | . . . Parts Damaged . | . . . Bothacking | -11 -10 -10 ------------ Run | Scr Mat Min Used RIF Installer . | . . . Robots Hacked . | . . . Non-combat . | . . . Combat . | . . . Robot Hacks Applied . | . . . Relay Couplers Released . | . . . Robots Rewired . | . . . Allies Hacked . | . . . Hacks Repelled . | . . . Allies | -11 -10 -10 -------- Run | Scr Mat Min Total Allies . | . . . Largest Group . | . . . Highest-Rated Group . | . . . Highest-Rated Ally . | . . . Total Orders . | . . . Ally Attacks . | . . . Total Damage . | . . . Kills . | . . . Allies Corrupted . | . . . Allies Melted . | . . . Intel | -11 -10 -10 ------- Run | Scr Mat Min Robot Analysis Total . | . . . Derelict Logs Recovered 1 | . . 1 Drone Launches . | . . . Drone Recoveries . | . . . Exploration | -11 -10 -10 ------------- Run | Scr Mat Min Turns Passed 882 | 60 299 523 Spaces Moved 768 | 52 238 478 Core 3 | 3 . . Treads . | . . . Legs . | . . . Wheels 765 | 49 238 478 Hover . | . . . Flight . | . . . Fastest Speed 50 | 50 80 90 Average Speed 88 | 87 84 90 Slowest Speed 100 | 100 100 100 Overloaded Moves . | . . . Propulsion Burnouts . | . . . Robots Hopped . | . . . Cave-ins Triggered . | . . . Exploration Rate (%) 48 | 4 53 88 Regions Visited 2 Branch Regions 1 Pre-discovered Areas . | . . . Known Exits Taken . | . . . Unknown Exits Taken 2 | 1 1 . Scrap Searched 2 | . . 2 Spaces Dug . | . . . Terrain Destroyed 15 | . 15 . Melee . | . . . Projectile . | . . . AOE 15 | . 15 . Actions | -11 -10 -10 --------- Run | Scr Mat Min Total 896 | 63 299 534 Wait 44 | . 14 30 Move 766 | 51 237 478 Hop . | . . . Pick Up 18 | 6 8 4 Fast Attach 9 | 6 2 1 Attach 3 | . 1 2 Detach . | . . . Swap 5 | . 5 . Drop 10 | . 10 . Fire 41 | . 22 19 Melee . | . . . Ram . | . . . Kick . | . . . Crush . | . . . Escape Stasis . | . . . Rewire . | . . . Trap . | . . . Miscellaneous . | . . . Route ------- -11/Scrapyard -10/Materials (discovered 3 exits: [*Mat] / [*Min x2]) -10/Mines (discovered 1 exit: [*Mat]) History --------- Turn | Location | Event 9 | -11/Scrapyard | Discovered new exit (range 16) 61 | -11/Scrapyard | Entered Materials 249 | -10/Materials | Discovered new exit (range 7) 271 | -10/Materials | Discovered new exit (range 10) 330 | -10/Materials | Discovered new exit (range 10) 360 | -10/Materials | Entered Mines 365 | -10/Mines | Learned Materials stockpile data 428 | -10/Mines | Core integrity fell below 50% 472 | -10/Mines | Build established: Scavenger-Mutant 537 | -10/Mines | Lost 3 parts (1n2w) 618 | -10/Mines | Assisted by bots powering up and referring to "LRC-V3" 767 | -10/Mines | Discovered new exit (range 3) 868 | -10/Mines | Core integrity fell below 20% 883 | -10/Mines | Destroyed by S-10 Pest with Light Assault Rifle Last Messages --------------- 00666_ R-06 Scavenger collects Aluminum Leg. 00667_ K-01 Serf collects debris. 00667_ U-05 Engineer lays Concrete. 00671_ YI-UF0 mumbles something. 00671_ U-05 Engineer lays Concrete. 00673_ R-06 Scavenger collects Wheel. 00675_ U-05 Engineer lays Concrete. 00679_ U-05 Engineer builds a Wall. 00683_ U-05 Engineer lays Concrete. 00684_ U-05 Engineer builds a Wall. 00689_ U-05 Engineer lays Concrete. 00702_ Searching scrap... 00702_ Found 34 Matter. 00702_ Found Ion Engine. 00715_ K-01 Serf collects debris. 00767_ EXIT=FOUND 00871_ S-10 Pest destroyed. 00874_ Ion Engine destroyed. 00877_ S-10 Pest destroyed. 00877_ Switching to secondary target: S-10 Pest. Map ----- +----------------------------------------------------+ | ??# #?????# #???? | | ??# #?????# """ #???? | | ?## ####### """ #???? | | ?# # < """ #???? | | ?# ### ##### # #???? | | ?# #?## ##???# #### #######???? | | ?## #??####????# #??# #?????????# | | ??## #########??# #??# #????????## | | ???## ##?# #### #????????# | | ????# ### ## #????????# | | ????# ##### #### ## #????????## | | ????# ##### ### ## #?????????# | | ????## ## ## #?????????? | | ?????# # #???????### | | ?????# ### #### #???????# | | ?????# ##?# #??# #???????# | | ?????# ##### ## ##?## #???????# | | ?????# ## ######## ##??????# | | ?????###### ## #???## #??????# | | ??????????# ## #??## #?????## | | ?????????## # #### ######### | | ????????## = ## %* | | ???????## %s ## ###### | | ???????# %#### # #????## | | ???????# =#??# ##????#### | | ???????# @ ##??###### #???????? | | ???????# ##????????## #???????? | | ??????# ##??????????# #???????? | | ??????# ????????????# #???????? | | ??????# ????????????# #???????? | | ??????# ????????????# #???????? | | ?????? ????????????# #???????? | | ?????#### ????????????## #???????? | | ????????###??????????#### #???????? | | ????????????????????## # #???????? | | ????????????????????# ##??????? | | ???????????????????## ##??????? | | ???????????????????# ##??????? | | ???????????????????# ##??????? | | ??????????????????## ##??????? | | ?????????????????## ###??????? | | ?????????????????# %######???? | | ????????????????## ## ##??? | | ????????????????# #### | | ???????????????# | | ??????????????# ##### | | ?????????????# #???# ###### | | ???????????? ????# ##????? | | ???????????? ????## ##????? | | ????????????### ????# #????? | +----------------------------------------------------+ Best States ------------- Heat Dissipation 25 Energy Generation 10 Energy Capacity 250 Matter Stores 300 Matter Capacity 300 Sight Range 16 Terrain Scan Density 10 Evasion (%) 44 Offensive Hacking 10 Item Schematics ----------------- None Robot Schematics ------------------ None Fabricated ------------ Nothing Alien Tech Used ----------------- None Achievements -------------- None Challenges ------------ None Game ------ Seed ModifiedSpectralChip Manual? 0 Play Time 00:12:20 Cumulative 85.6 hours Start 2019.10.26 @ 11:27:51 End 2019.10.26 @ 11:41:52 Sessions 1 Manual Loads 0 Difficulty Rogue Special Mode None Game No. 148 Rogue 148 Adventurer 0 Explorer 0 Win Type - Total 0 Types 0/0/0/0/0/0/0 Lore% 27 Gallery% 47 Achievement% 36 Wizard Run 0 Options --------- ASCII 0 Keyboard 0 Movement Mouse Keybinds 0 Fullscreen 1 Font 14/SmallcapsGlow Map View 84x54 Tactical HUD 1 Map Filters NONE Filters NONE Steam 1 RUN: 4101ed2e-2166-4145-ba14-17a96e6dfb9b